Cogmind - Beta 13 @@@ ROGUE MODE // 2024.04.28 @ 11:29:47 Player: monkeman Result: Destroyed by 5H-OU3(R) with Subdweller Beam Cannon Performance ------------- Evolutions (0) 0 Regions Visited (2) 400 Robots Destroyed (23) 115 Value Destroyed (668) 668 Prototype IDs (3) 60 Alien Tech Used (0) 0 Bonus (0) 0 TOTAL SCORE: 1243 Bonus ------- None Cogmind --------- Core Integrity 0/250 Matter 274/300 Energy 200/200 System Corruption 0% Temperature Cool (9) Movement Treading (240) Ox1 Location -10/Subcaves Parts ------- > --- POWER (1) -------- Subdweller Power Source > --- PROPULSION (2) --- Light Treads Subdweller Monowheel > --- UTILITY (2) ------ Large Storage Unit Light Armor Plating > --- WEAPON (2) ------- Barrage Gun > --- INVENTORY (15) --- Wheel Subdweller Monowheel Disposable Heat Sink High-capacity Matter Pod (200) Signal Interpreter Targeting Computer Makeshift Light Armor Plating Hacking Suite Makeshift Laser Subdweller Machine Gun Barrage Gun Grenade Launcher Grenade Launcher Peak State ------------ > --- POWER ------------ Subdweller Power Source > --- PROPULSION ------- Light Treads Light Treads > --- UTILITY ---------- Large Storage Unit Light Armor Plating > --- WEAPON ----------- Makeshift Laser Heavy Battle Rifle > --- INVENTORY -------- Ion Engine Wheel Subdweller Monowheel Disposable Heat Sink High-capacity Matter Pod Signal Interpreter Targeting Computer Makeshift Light Armor Plating Hacking Suite Makeshift Laser Subdweller Machine Gun Barrage Gun Barrage Gun Grenade Launcher Grenade Launcher [Rating: 17] Favorites ----------- Power Ion Engine Engine Ion Engine Propulsion Light Treads Treads Light Treads Wheel Subdweller Monowheel Utility Light Armor Plating Device Improved Terrain Scanner Storage Large Storage Unit Protection Light Armor Plating Weapon Makeshift Laser Energy Gun Makeshift Laser Ballistic Gun Heavy Battle Rifle Build | -11 -10 -10 ------- Run | Yrd Mat Sub Slots Evolved . | . . . Power . | . . . Propulsion . | . . . Utility . | . . . Weapon . | . . . Parts Attached 23 | 7 4 12 Power 4 | 1 . 3 Engine 4 | 1 . 3 Core . | . . . Reactor . | . . . Propulsion 5 | 2 . 3 Treads 4 | 2 . 2 Leg . | . . . Wheel 1 | . . 1 Hover . | . . . Flight . | . . . Utility 6 | 2 3 1 Device 1 | 1 . . Storage 2 | 1 1 . Processor . | . . . Hackware . | . . . Protection 3 | . 2 1 Artifact . | . . . Weapon 8 | 2 1 5 Energy Gun 3 | 1 . 2 Energy Cannon . | . . . Ballistic Gun 5 | 1 1 3 Ballistic Cannon . | . . . Launcher . | . . . Special Weapon . | . . . Impact Weapon . | . . . Slashing Weapon . | . . . Piercing Weapon . | . . . Special Melee Weapon . | . . . Unidentified Prototypes . | . . . Parts Lost 10 | . . 10 Power 2 | . . 2 Propulsion 3 | . . 3 Utility 1 | . . 1 Weapon 4 | . . 4 Highest Loss Streak 3 | . . 3 To Critical Strikes 1 | . . 1 Average Slot Usage (%) 99 | . 100 98 Engine 13 | . 14 13 Treads 27 | . 28 26 Storage 14 | . 14 14 Protection 13 | . 13 14 Energy Gun 12 | . 14 11 Ballistic Gun 15 | . 14 16 Naked Turns . | . . . Heaviest Build 35 | 14 32 35 Greatest Support 40 | 40 40 40 Greatest Overweight (x) 1 | . . 1 Average Overweight (x) . | . . . Largest Inventory Capacity 15 | 8 15 15 Average Capacity 13 | 7 11 15 Most Carried 15 | 4 15 15 Average Carried 12 | 2 9 14 Final Capacity 15 | 8 15 15 Final Carried 14 | 4 14 13 Class Distribution -------------------- 61% | Mutant 38% | Scavenger-Mutant Dominant Class ---------------- Mutant | -10/Materials Scavenger-Mutant | -10/Subcaves Resources | -11 -10 -10 ----------- Run | Yrd Mat Sub Matter Collected 785 | 181 389 215 Remotely . | . . . Salvage Created 898 | 18 482 398 Parts 56 | 2 34 20 Haulers Intercepted 1 | . 1 . Recyclers Shooed 2 | . 2 . Parts Field Recycled . | . . . Retrieved Matter . | . . . Parts Self-Destructed . | . . . Prevented . | . . . Kills | -11 -10 -10 ------- Run | Yrd Mat Sub Combat Hostiles Destroyed 18 | . 10 8 Guns 17 | . 9 8 AOE 1 | . 1 . Classes Destroyed 7 | 1 5 1 Tunneler 1 | 1 . . Hauler 1 | . 1 . Operator 1 | . 1 . Watcher 2 | . 2 . Swarmer 3 | . 3 . Grunt 7 | . 7 . Subdweller 8 | . . 8 Best Kill Streak 4 | 1 4 2 Combat Bots Only 4 | . 4 2 Max Kills in Single Turn 2 | 1 1 2 Gunslinging 1 | . . 1 Exploded 1 | . 1 . Melee . | . . . Uniques/NPCs Destroyed . | . . . Combat | -11 -10 -10 -------- Run | Yrd Mat Sub Hostile Shots Fired 118 | . 37 81 Missed 32 | . 9 23 Damage Taken 1598 | . 337 1261 Core 269 | . 36 233 Absorbed by Shields . | . . . Core Remaining (%) 100 | 100 . . Volleys Fired 78 | 1 35 42 Largest 2 | 2 2 2 Hottest 83 | 60 60 83 Shots Fired 154 | 2 70 82 Gun 154 | 2 70 82 Cannon . | . . . Launcher . | . . . Special . | . . . Kinetic 90 | 1 35 54 Thermal 14 | . . 14 Explosive . | . . . Electromagnetic 50 | 1 35 14 Robot Hit Streak 18 | 1 11 18 Robot Miss Streak 3 | . 3 1 Penetration Max . | . . . Secondary Targets 3 | . 1 2 Max Gunslinging Chain 1 | . 1 1 Shots Hit Robots 114 | 1 41 72 Core Hits 42 | 1 23 18 Critical Kills 1 | . . 1 Critical Parts Destroyed . | . . . Critical Strikes 3 | . . 3 Burn 1 | . . 1 Destroy 1 | . . 1 Corrupt 1 | . . 1 Melee Attacks . | . . . Impact . | . . . Slashing . | . . . Piercing . | . . . Sneak Attacks . | . . . Combat Hostiles . | . . . Follow-up Attacks . | . . . Damage Inflicted 1644 | 12 590 1042 Guns 1552 | 12 498 1042 Cannons . | . . . Explosions 92 | . 92 . Melee . | . . . Ramming . | . . . Kinetic 934 | . 218 716 Thermal 310 | . 92 218 Explosive . | . . . Electromagnetic 400 | 12 280 108 Impact . | . . . Slashing . | . . . Piercing . | . . . Highest Corruption . | . . . Average Corruption . | . . . Corruption Purged . | . . . Corruption Blocked . | . . . Overload Shots . | . . . Overflow Damage 8 | . 8 . Projectiles . | . . . Explosions 8 | . 8 . Melee . | . . . Knockbacks . | . . . Impact . | . . . Kinetic . | . . . Secondary . | . . . Self-Inflicted Damage 29 | . 29 . Shots 1 | . 1 . Rammed . | . . . Targets Rammed . | . . . Kicked . | . . . Crushed . | . . . Highest Temperature 240 | 20 240 2 Average Temperature 57 | 15 58 1 Received Heat Transfer 354 | . 147 207 Effects 2 | . 2 . Energy Bleed 2 | . 2 . Siege Activations . | . . . Robots Corrupted . | . . . Combat Hostiles . | . . . Parts Fried . | . . . Impact Corruptions . | . . . Robots Melted . | . . . Combat Hostiles . | . . . Parts Melted . | . . . Heat Transferred 655 | . 100 555 Parts Sabotaged . | . . . Parts Stolen . | . . . Parts Stripped . | . . . Power Chain Reactions 2 | . 2 . Alert | -11 -10 -10 ------- Run | Yrd Mat Sub Peak Influence 232 | 5 232 . Initial 3 | . 3 . Average 91 | . 98 . Maximum Alert Level 1 | . 1 . Low Security (%) 86 | 100 85 . Level 1 13 | . 14 . Level 2 . | . . . Level 3 . | . . . Level 4 . | . . . Level 5 . | . . . High Security . | . . . Max Security . | . . . Squads Dispatched 3 | . 3 . Investigation 3 | . 3 . Extermination . | . . . Reinforcement . | . . . Assault . | . . . Garrison . | . . . Intercept . | . . . Searches Triggered . | . . . Construction Impeded . | . . . Haulers Reinforced . | . . . Active Scanning Responses . | . . . Cargo Convoy Interrupts . | . . . Stealth | -11 -10 -10 --------- Run | Yrd Mat Sub Distress Signals . | . . . Communications Jammed . | . . . Distress Signals . | . . . Times Spotted 29 | . 18 11 Peak Tracking Total 5 | . 5 3 Tactical Retreats . | . . . Traps | -11 -10 -10 ------- Run | Yrd Mat Sub Traps Triggered 1 | . 1 . Indirectly . | . . . Trap Hack Attempts . | . . . Triggered . | . . . Disarmed . | . . . Reprogrammed . | . . . Reused . | . . . Traps Extracted . | . . . Installed . | . . . Triggered . | . . . Machines | -11 -10 -10 ---------- Run | Yrd Mat Sub Machines Disabled 1 | . 1 . Max in Single Turn 1 | . 1 . Machines Repaired . | . . . Machines Dismantled . | . . . Machines Sabotaged . | . . . Overloaded Fab Kills . | . . . Hacking | -11 -10 -10 --------- Run | Yrd Mat Sub Machines Accessed 10 | . 9 1 Terminals 8 | . 8 . Fabricators . | . . . Repair Stations . | . . . Recycling Units 1 | . 1 . Scanalyzers . | . . . Garrison Access . | . . . Total Hacks 29 | . 25 4 Successful 13 | . 9 4 Failed 16 | . 16 . Catastrophic 1 | . 1 . Database Lockouts . | . . . Manual 14 | . 14 . Terminals 23 | . 23 . Fabricators . | . . . Repair Stations . | . . . Recycling Units 2 | . 2 . Scanalyzers . | . . . Garrison Access . | . . . Terminal Hacks 11 | . 7 4 Record 4 | . . 4 Part Schematic 1 | . 1 . Robot Analysis 1 | . 1 . Prototype ID Bank 2 | . 2 . Locate Traps 1 | . 1 . Hauler Manifests 1 | . 1 . Zone Layout 1 | . 1 . Fabricator Hacks . | . . . Repair Station Hacks . | . . . Recycling Unit Hacks 1 | . 1 . Retrieve Matter 1 | . 1 . Scanalyzer . | . . . Garrison Access Hacks . | . . . Unauthorized Hacks 1 | . 1 . Terminals 1 | . 1 . Botnet 1 | . 1 . Fabricators . | . . . Repair Stations . | . . . Recycling Units . | . . . Scanalyzers . | . . . Garrison Access . | . . . Data Cores Recovered 1 | . 1 . Used . | . . . Hacking Detections 9 | . 9 . Full Trace Events 1 | . 1 . Feedback Events . | . . . Feedback Blocked . | . . . Robot Schematics Acquired . | . . . Robots Built . | . . . Authchips . | . . . Time . | . . . Total Robot Build Rating . | . . . Part Schematics Acquired 1 | . 1 . Parts Built . | . . . Authchips . | . . . Time . | . . . Total Part Build Rating . | . . . Parts Repaired . | . . . Time . | . . . Parts Recycled . | . . . Recycled Matter . | . . . Retrieved Matter . | . . . Retrieved Components . | . . . Parts Scanalyzed . | . . . Part Schematics Acquired . | . . . Parts Damaged . | . . . Bothacking | -11 -10 -10 ------------ Run | Yrd Mat Sub Used RIF Installer . | . . . Robots Hacked . | . . . Non-combat . | . . . Combat . | . . . Robot Hacks Applied . | . . . Relay Couplers Released . | . . . Fabnet Peak Effective % . | . . . Robots Rewired . | . . . Allies Hacked . | . . . Hacks Repelled . | . . . Allies | -11 -10 -10 -------- Run | Yrd Mat Sub Total Allies . | . . . Largest Group . | . . . Highest-Rated Group . | . . . Highest-Rated Ally . | . . . Total Orders . | . . . Ally Attacks . | . . . Total Damage . | . . . Kills . | . . . Allies Corrupted . | . . . Allies Melted . | . . . Intel | -11 -10 -10 ------- Run | Yrd Mat Sub Robot Analysis Total 1 | . 1 . Derelict Logs Recovered . | . . . Drone Launches . | . . . Drone Recoveries . | . . . Exploration | -11 -10 -10 ------------- Run | Yrd Mat Sub Turns Passed 2509 | 72 910 1527 Spaces Moved 1370 | 41 482 847 Core 9 | 9 . . Treads 1338 | 32 482 824 Legs . | . . . Wheels 23 | . . 23 Hover . | . . . Flight . | . . . Fastest Speed 50 | 50 160 120 Average Speed 159 | 135 160 160 Slowest Speed 240 | 160 160 240 Overloaded Moves . | . . . Propulsion Burnouts . | . . . Robots Hopped . | . . . Cave-ins Triggered . | . . . Exploration Rate (%) 43 | 4 73 53 Regions Visited 2 Branch Regions 1 Pre-discovered Areas . | . . . Known Exits Taken . | . . . Unknown Exits Taken 2 | 1 1 . Scrap Searched 3 | . . 3 Spaces Dug . | . . . Terrain Destroyed 7 | . 7 . Melee . | . . . Projectile . | . . . AOE 7 | . 7 . Terrain Rammed . | . . . Walls Destroyed . | . . . Machines Disabled . | . . . Actions | -11 -10 -10 --------- Run | Yrd Mat Sub Total 1550 | 52 560 938 Wait 35 | . 15 20 Move 1368 | 40 481 847 Hop . | . . . Pick Up 30 | 4 16 10 Fast Attach 12 | 7 1 4 Attach 8 | . 1 7 Detach 2 | . 1 1 Swap 3 | . 2 1 Drop 14 | . 8 6 Fire 78 | 1 35 42 Melee . | . . . Ram . | . . . Kick . | . . . Crush . | . . . Escape Stasis . | . . . Rewire . | . . . Trap . | . . . Miscellaneous . | . . . Route ------- -11/Scrapyard -10/Materials (discovered 4 exits: [*Mat x2] / [*Min] / *Sub) -10/Subcaves (discovered 1 exit: [*Mat]) History --------- Turn | Location | Event 12 | -11/Scrapyard | Discovered new exit (range 13) 73 | -11/Scrapyard | Entered Materials 186 | -10/Materials | Discovered new exit (range 15) 303 | -10/Materials | Build established: Mutant 579 | -10/Materials | Discovered new exit (range 12) 767 | -10/Materials | Discovered new exit (range 16) 965 | -10/Materials | Discovered new exit (range 5) 983 | -10/Materials | Entered Subcaves 993 | -10/Subcaves | Ambushed by Subdwellers from Twisted Machinery 1021 | -10/Subcaves | Core integrity fell below 50% 1113 | -10/Subcaves | A swath of the cavern ceiling suddenly collapsed 1262 | -10/Subcaves | Shifting Twisted Machinery released Hvy. Battle Rifle 1314 | -10/Subcaves | Shifting Twisted Machinery released Sub. Laser 1587 | -10/Subcaves | Shifting Twisted Machinery released Barrage Gun 1590 | -10/Subcaves | Shifting Twisted Machinery released Sub. Monowheel 1791 | -10/Subcaves | Build established: Scavenger-Mutant 2217 | -10/Subcaves | Visited Clippyterm 2222 | -10/Subcaves | Learned Factory garrison access intel 2339 | -10/Subcaves | Discovered new exit (range 10) 2397 | -10/Subcaves | Shifting Twisted Machinery released Flamer 2458 | -10/Subcaves | Core integrity fell below 20% 2492 | -10/Subcaves | Lost 3 parts (1p1n1w) 2503 | -10/Subcaves | A Subdweller sparked back to life 2503 | -10/Subcaves | A Subdweller sparked back to life 2503 | -10/Subcaves | A Subdweller sparked back to life 2510 | -10/Subcaves | Destroyed by 5H-OU3(R) with Subdweller Beam Cannon Last Messages --------------- 02339_ EXIT=FOUND Flamer falls loose from the Twisted Machinery. 02453_ Lgt. Treads destroyed. 02456_ Mak. Laser destroyed. 02461_ Ion Engine destroyed. 02465_ QT-DYI(R) destroyed. 02465_ Switching to secondary target: HI-76K(R). 02465_ HI-76K(R) destroyed. 02468_ Acquired 28 matter. 02472_ Acquired Sub. Monowheel. 02474_ Acquired 10 matter. 02476_ Acquired Sub. Power Source. 02503_ Z8-NZO(R) creaks and sparks as it begins to move. 02503_ G9-2JL(R) creaks and sparks as it begins to move. 02503_ 5H-OU3(R) creaks and sparks as it begins to move. 02509_ Hvy. Battle Rifle destroyed. Map ----- +----------------------------------------------------+ | ??????????????? ????????????????????????????? | | ??????????????? ???????#? ?????????????????? | | ???????????????# ??????# ? ?????????????????? | | ???????????????# ????## " ?????????????????? | | ??????????????## ????#|""" ?????????????????? | | ?????????? ???#" ???#""""#?????????????????? | | ????#?????# ??# ??? """##????????????????? | | ????# ## ## ???# " ##???????????????? | | ????# ### ##"""#???????????????? | | ?????# ## # #????????????????? | | ????????# ## ##???????????????? | | ?????????# ## #???????????????? | | ?????????# #???????????????? | | ?????????# ### #???????????????? | | ?????????# ##???##### ##???????????????? | | ?????????# ??????## ### #????????????????? | | ?????????????##### #?# ##???????????????? | | ??????###???## ## ### #???????????????? | | ??????# #### #???????????????? | | ???????# #???????????????? | | ???????# #???????????????? | | ??????## !&&!### ##???????????????? | | ??????# %##?### # #????????????????? | | ??????# =%&####?### # ####??????????????? | | ???#### #???#### R R #??????????????? | | ???# ##??????# @ #??????????????? | | ???# #??????# <&R #??????????????? | | ???# ###????# #??????????????? | | ???# #????##<< < #??????????????? | | ???# #?????## #??????????????? | | ?### ### #??????? #??????????????? | | ?# ##?? #??????# #??????????????? | | ?# #??? #????? #??????????????? | | ?# #???# < ???? ##??????????????? | | ## #????## ???##???????????????? | | # " #?????# ????????????????????? | | # ### #?????# # ?????????????????????? | | ## #?## #?????? #??????????????????????? | | # #??## ###?????? ???????????????????????? | | ## ##??#### ####???????????????????????????? | | ?# #????# ???????????????????????????? | | ?# #??## ????????????????????????????? | | ##" ##?# ?????????????????????????????? | | """"" ### #???????????????????????????????? | | "" "" #????????????????????????????????? | | " " ##???????????????????????????????? | | ## " #???????????????????????????????? | | ?# "" #???????????????????????????????? | | ## " ##???????????????????????????????? | | # "##???????????????????????????????? | +----------------------------------------------------+ Best States ------------- Heat Dissipation 25 Energy Generation 15 Energy Capacity 250 Matter Stores 300 Matter Capacity 300 Sight Range 16 Terrain Scan Range 16 Terrain Scan Density 10 Armor Coverage 150 Evasion (%) 50 Recoil Reduction 2 Item Schematics ----------------- Huge Storage Unit | -10/Materials | Hacked Robot Schematics ------------------ None Fabricated ------------ Nothing Alien Tech Used ----------------- None Achievements -------------- None Challenges ------------ None Game ------ Seed LaserArmorSplitter Manual? 0 Play Time 00:12:57 Cumulative 50.0 hours Start 2024.04.28 @ 11:16:37 End 2024.04.28 @ 11:29:47 Sessions 1 Manual Loads 0 Difficulty Rogue Special Mode None Game No. 69 Rogue 69 Adventurer 0 Explorer 0 Win Type - Total 1 Types 1/0/0/0/0/0/0/0/0 Lore% 27 Gallery% 43 Achievement% 32 Wizard Run 0 Options --------- Layout 1 ASCII 0 Keyboard 0 Movement Mouse Keybinds 0 Fullscreen 1 Font 24/Smallcaps Map View 50x35 Zoom Use 0% Tactical HUD 1 Map Filters NONE Filters NONE Steam 1 RUN: 561a317b-3a6f-4040-96cc-652a39cb9269